[Event "Titled Tuesday Blitz December 06 Late 2022"]
[White "O`Gorman, Tom"]
[Black "Sivakumar, Shaaketh"]
[WhiteFideId "2508249"]
[BlackFideId "30940176"]
[WhiteElo "2271"]
[BlackElo "2174"]
[Result "1-0"]
[Round "09"]
[TimeControl "180+1"]
[Date "2022.12.06"]
[WhiteClock "0:02:08"]
[BlackClock "0:02:12"]

1. e4 {[%clk 0:03:00]}  e6 {[%clk 0:03:00]} 2. d4 {[%clk 0:02:55]}  d5 {[%clk 0:03:01]} 3. Nd2 {[%clk 0:02:54]}  c5 {[%clk 0:03:01]} 4. Ngf3 {[%clk 0:02:53]}  Nc6 {[%clk 0:03:01]} 5. exd5 {[%clk 0:02:51]}  exd5 {[%clk 0:03:02]} 6. Bb5 {[%clk 0:02:50]}  Qe7+ {[%clk 0:03:02]} 7. Qe2 {[%clk 0:02:49]}  Qxe2+ {[%clk 0:03:01]} 8. Kxe2 {[%clk 0:02:50]}  a6 {[%clk 0:03:02]} 9. Bxc6+ {[%clk 0:02:49]}  bxc6 {[%clk 0:03:03]} 10. dxc5 {[%clk 0:02:50]}  Bxc5 {[%clk 0:03:03]} 11. Nb3 {[%clk 0:02:50]}  Bd6 {[%clk 0:03:04]} 12. Be3 {[%clk 0:02:50]}  a5 {[%clk 0:03:02]} 13. Rhe1 {[%clk 0:02:48]}  Ba6+ {[%clk 0:03:01]} 14. Kd2 {[%clk 0:02:48]}  Ne7 {[%clk 0:02:58]} 15. Bc5 {[%clk 0:02:47]}  Kd7 {[%clk 0:02:58]} 16. Ne5+ {[%clk 0:02:46]}  Bxe5 {[%clk 0:02:56]} 17. Rxe5 {[%clk 0:02:47]}  Ng6 {[%clk 0:02:55]} 18. Re3 {[%clk 0:02:47]}  a4 {[%clk 0:02:55]} 19. Nd4 {[%clk 0:02:43]}  Rhe8 {[%clk 0:02:56]} 20. Rae1 {[%clk 0:02:40]}  Rxe3 {[%clk 0:02:51]} 21. Rxe3 {[%clk 0:02:40]}  f6 {[%clk 0:02:50]} 22. f4 {[%clk 0:02:33]}  Re8 {[%clk 0:02:39]} 23. Rxe8 {[%clk 0:02:28]}  Kxe8 {[%clk 0:02:40]} 24. g3 {[%clk 0:02:22]}  Kd7 {[%clk 0:02:38]} 25. Nf5 {[%clk 0:02:22]}  h5 {[%clk 0:02:28]} 26. Nxg7 {[%clk 0:02:21]}  h4 {[%clk 0:02:29]} 27. Nf5 {[%clk 0:02:18]}  hxg3 {[%clk 0:02:30]} 28. hxg3 {[%clk 0:02:19]}  Nh8 {[%clk 0:02:23]} 29. Bd4 {[%clk 0:02:15]}  Ke6 {[%clk 0:02:22]} 30. Ng7+ {[%clk 0:02:16]}  Kf7 {[%clk 0:02:22]} 31. Nh5 {[%clk 0:02:16]}  Ng6 {[%clk 0:02:16]} 32. Nxf6 {[%clk 0:02:14]}  c5 {[%clk 0:02:16]} 33. Be5 {[%clk 0:02:15]}  Bc4 {[%clk 0:02:17]} 34. Nd7 {[%clk 0:02:13]}  Bxa2 {[%clk 0:02:14]} 35. Nxc5 {[%clk 0:02:12]}  Ne7 {[%clk 0:02:13]} 36. Nxa4 {[%clk 0:02:12]}  Kg6 {[%clk 0:02:13]} 37. b3 {[%clk 0:02:11]}  Kf5 {[%clk 0:02:13]} 38. Nc3 {[%clk 0:02:11]}  Kg4 {[%clk 0:02:12]} 39. Nxa2 {[%clk 0:02:11]}  Kxg3 {[%clk 0:02:13]} 40. Nc3 {[%clk 0:02:10]}  Kf3 {[%clk 0:02:14]} 41. Kd3 {[%clk 0:02:09]}  Nc6 {[%clk 0:02:13]} 42. Nxd5 {[%clk 0:02:08]}  Nb4+ {[%clk 0:02:12]} 43. Nxb4 {[%clk 0:02:08]} 1-0


[Site "https://www.chess.com"]

[Event "Titled Tuesday Blitz December 06 Late 2022"]
[White "Papayan, Oleg"]
[Black "Rosen, Eric"]
[WhiteFideId "4193911"]
[BlackFideId "2032562"]
[WhiteElo "2153"]
[BlackElo "2362"]
[Result "0-1"]
[Round "09"]
[TimeControl "180+1"]
[Date "2022.12.07"]
[WhiteClock "0:00:01"]
[BlackClock "0:00:01"]

1. e4 {[%clk 0:02:55]}  e5 {[%clk 0:02:57]} 2. Nf3 {[%clk 0:02:54]}  Nf6 {[%clk 0:02:58]} 3. d4 {[%clk 0:02:54]}  Nxe4 {[%clk 0:02:58]} 4. Nxe5 {[%clk 0:02:54]}  d6 {[%clk 0:02:40]} 5. Nf3 {[%clk 0:02:52]}  d5 {[%clk 0:02:33]} 6. Bd3 {[%clk 0:02:52]}  Nc6 {[%clk 0:02:33]} 7. O-O {[%clk 0:02:47]}  Bg4 {[%clk 0:02:25]} 8. Nbd2 {[%clk 0:02:34]}  f5 {[%clk 0:02:05]} 9. c3 {[%clk 0:02:23]}  Bd6 {[%clk 0:01:40]} 10. Qb3 {[%clk 0:02:19]}  Rb8 {[%clk 0:01:39]} 11. h3 {[%clk 0:02:17]}  Bh5 {[%clk 0:01:38]} 12. Re1 {[%clk 0:02:07]}  Bf7 {[%clk 0:01:30]} 13. Nf1 {[%clk 0:01:41]}  O-O {[%clk 0:01:30]} 14. Ne3 {[%clk 0:01:41]}  Ne7 {[%clk 0:01:01]} 15. c4 {[%clk 0:01:37]}  c6 {[%clk 0:00:57]} 16. cxd5 {[%clk 0:01:29]}  Nxd5 {[%clk 0:00:54]} 17. Bc4 {[%clk 0:01:27]}  Kh8 {[%clk 0:00:53]} 18. Ne5 {[%clk 0:01:11]}  Be6 {[%clk 0:00:43]} 19. Nxd5 {[%clk 0:01:02]}  cxd5 {[%clk 0:00:43]} 20. Bxd5 {[%clk 0:01:01]}  Bxe5 {[%clk 0:00:41]} 21. Bxe6 {[%clk 0:00:56]}  Bxd4 {[%clk 0:00:41]} 22. Be3 {[%clk 0:00:52]}  Bxe3 {[%clk 0:00:41]} 23. Rxe3 {[%clk 0:00:52]}  Qf6 {[%clk 0:00:41]} 24. Bd5 {[%clk 0:00:38]}  Nc5 {[%clk 0:00:32]} 25. Qc3 {[%clk 0:00:39]}  f4 {[%clk 0:00:15]} 26. Qxf6 {[%clk 0:00:33]}  Rxf6 {[%clk 0:00:16]} 27. Rc3 {[%clk 0:00:26]}  b6 {[%clk 0:00:15]} 28. b4 {[%clk 0:00:25]}  Nd7 {[%clk 0:00:14]} 29. Rc7 {[%clk 0:00:25]}  Rd6 {[%clk 0:00:14]} 30. Bf3 {[%clk 0:00:16]}  a5 {[%clk 0:00:14]} 31. a3 {[%clk 0:00:06]}  Ne5 {[%clk 0:00:13]} 32. Be4 {[%clk 0:00:06]}  Rd4 {[%clk 0:00:11]} 33. f3 {[%clk 0:00:03]}  axb4 {[%clk 0:00:12]} 34. axb4 {[%clk 0:00:03]}  Rxb4 {[%clk 0:00:12]} 35. h4 {[%clk 0:00:02]}  h5 {[%clk 0:00:04]} 36. Raa7 {[%clk 0:00:02]}  Rg8 {[%clk 0:00:02]} 37. Bd5 {[%clk 0:00:03]}  Rd8 {[%clk 0:00:02]} 38. Be6 {[%clk 0:00:01]}  Rd6 {[%clk 0:00:01]} 39. Bf5 {[%clk 0:00:01]}  Rd8 {[%clk 0:00:01]} 0-1


[Site "https://www.chess.com"]

[Event "Titled Tuesday Blitz December 06 Late 2022"]
[White "Papp, Levente"]
[Black "Baskakov, Egor"]
[WhiteFideId "751243"]
[BlackFideId "24197866"]
[WhiteElo "2380"]
[BlackElo "2212"]
[Result "1-0"]
[Round "09"]
[TimeControl "180+1"]
[Date "2022.12.07"]
[WhiteClock "0:00:26"]
[BlackClock "0:00:37"]

1. Nf3 {[%clk 0:02:55]}  Nf6 {[%clk 0:02:59]} 2. g3 {[%clk 0:02:54]}  e6 {[%clk 0:03:00]} 3. Bg2 {[%clk 0:02:54]}  d5 {[%clk 0:03:00]} 4. O-O {[%clk 0:02:54]}  Be7 {[%clk 0:03:00]} 5. d3 {[%clk 0:02:54]}  O-O {[%clk 0:03:01]} 6. Re1 {[%clk 0:02:55]}  d4 {[%clk 0:03:02]} 7. c3 {[%clk 0:02:49]}  c5 {[%clk 0:03:02]} 8. Ne5 {[%clk 0:02:23]}  Qc7 {[%clk 0:02:51]} 9. cxd4 {[%clk 0:02:17]}  cxd4 {[%clk 0:02:51]} 10. Nc4 {[%clk 0:02:15]}  e5 {[%clk 0:02:49]} 11. Nba3 {[%clk 0:01:58]}  a6 {[%clk 0:02:45]} 12. Bd2 {[%clk 0:01:55]}  Nc6 {[%clk 0:02:44]} 13. Rc1 {[%clk 0:01:54]}  Re8 {[%clk 0:02:39]} 14. Na5 {[%clk 0:01:49]}  Bd7 {[%clk 0:02:37]} 15. Nxc6 {[%clk 0:01:40]}  Bxc6 {[%clk 0:02:38]} 16. Bxc6 {[%clk 0:01:38]}  bxc6 {[%clk 0:02:38]} 17. Qa4 {[%clk 0:01:38]}  Rec8 {[%clk 0:02:34]} 18. Nc4 {[%clk 0:01:37]}  Nd5 {[%clk 0:02:29]} 19. Na5 {[%clk 0:01:29]}  c5 {[%clk 0:02:26]} 20. b4 {[%clk 0:01:27]}  Rab8 {[%clk 0:02:04]} 21. bxc5 {[%clk 0:01:22]}  h5 {[%clk 0:01:50]} 22. h4 {[%clk 0:01:12]}  Rb2 {[%clk 0:01:38]} 23. Nb3 {[%clk 0:01:10]}  g5 {[%clk 0:01:26]} 24. Qa3 {[%clk 0:00:49]}  Rxd2 {[%clk 0:01:23]} 25. Nxd2 {[%clk 0:00:49]}  gxh4 {[%clk 0:01:24]} 26. Qxa6 {[%clk 0:00:37]}  hxg3 {[%clk 0:01:23]} 27. Qh6 {[%clk 0:00:37]}  gxf2+ {[%clk 0:01:14]} 28. Kxf2 {[%clk 0:00:37]}  Bh4+ {[%clk 0:01:15]} 29. Kf3 {[%clk 0:00:37]}  Bxe1 {[%clk 0:00:42]} 30. Rxe1 {[%clk 0:00:36]}  Nf4 {[%clk 0:00:42]} 31. Ne4 {[%clk 0:00:27]}  Qe7 {[%clk 0:00:37]} 32. Nf6+ {[%clk 0:00:26]} 1-0


[Site "https://www.chess.com"]

[Event "Titled Tuesday Blitz December 06 Late 2022"]
[White "Pein, Jonathan"]
[Black "Womacka, Mathias"]
[WhiteFideId "417092"]
[BlackFideId "4611390"]
[WhiteElo "2225"]
[BlackElo "2377"]
[Result "0-1"]
[Round "09"]
[TimeControl "180+1"]
[Date "2022.12.07"]
[WhiteClock "0:00:02"]
[BlackClock "0:00:16"]

1. b3 {[%clk 0:02:59]}  c5 {[%clk 0:02:54]} 2. Bb2 {[%clk 0:02:59]}  Nc6 {[%clk 0:02:52]} 3. Nf3 {[%clk 0:03:00]}  d6 {[%clk 0:02:51]} 4. g3 {[%clk 0:02:57]}  e5 {[%clk 0:02:50]} 5. d3 {[%clk 0:02:55]}  g6 {[%clk 0:02:50]} 6. Bg2 {[%clk 0:02:55]}  Bg7 {[%clk 0:02:51]} 7. c4 {[%clk 0:02:56]}  Nge7 {[%clk 0:02:49]} 8. O-O {[%clk 0:02:53]}  O-O {[%clk 0:02:49]} 9. Nc3 {[%clk 0:02:53]}  h6 {[%clk 0:02:48]} 10. Ne1 {[%clk 0:02:50]}  Be6 {[%clk 0:02:45]} 11. Nc2 {[%clk 0:02:50]}  d5 {[%clk 0:02:43]} 12. cxd5 {[%clk 0:02:50]}  Nxd5 {[%clk 0:02:42]} 13. Rc1 {[%clk 0:02:41]}  Rc8 {[%clk 0:02:32]} 14. Nxd5 {[%clk 0:02:07]}  Bxd5 {[%clk 0:02:33]} 15. Ne3 {[%clk 0:02:06]}  Bxg2 {[%clk 0:02:28]} 16. Kxg2 {[%clk 0:02:07]}  b6 {[%clk 0:02:28]} 17. Nc4 {[%clk 0:01:57]}  Qd7 {[%clk 0:02:14]} 18. h4 {[%clk 0:01:55]}  h5 {[%clk 0:02:12]} 19. a3 {[%clk 0:01:36]}  Rcd8 {[%clk 0:02:09]} 20. Kg1 {[%clk 0:01:24]}  f5 {[%clk 0:02:07]} 21. b4 {[%clk 0:01:22]}  cxb4 {[%clk 0:01:56]} 22. axb4 {[%clk 0:01:23]}  f4 {[%clk 0:01:43]} 23. b5 {[%clk 0:01:23]}  Nd4 {[%clk 0:01:43]} 24. Bxd4 {[%clk 0:01:19]}  exd4 {[%clk 0:01:42]} 25. Qb3 {[%clk 0:01:09]}  Kh7 {[%clk 0:01:41]} 26. Nd2 {[%clk 0:01:10]}  fxg3 {[%clk 0:01:35]} 27. fxg3 {[%clk 0:01:09]}  Bh6 {[%clk 0:01:33]} 28. Rxf8 {[%clk 0:01:01]}  Rxf8 {[%clk 0:01:32]} 29. Rf1 {[%clk 0:00:55]}  Rxf1+ {[%clk 0:01:01]} 30. Nxf1 {[%clk 0:00:52]}  Qe7 {[%clk 0:00:43]} 31. Qd5 {[%clk 0:00:26]}  Qxe2 {[%clk 0:00:38]} 32. Qxd4 {[%clk 0:00:26]}  Bg7 {[%clk 0:00:32]} 33. Qe4 {[%clk 0:00:22]}  Qxe4 {[%clk 0:00:22]} 34. dxe4 {[%clk 0:00:23]}  Kg8 {[%clk 0:00:20]} 35. Kf2 {[%clk 0:00:22]}  Kf7 {[%clk 0:00:20]} 36. Ke3 {[%clk 0:00:22]}  Ke6 {[%clk 0:00:20]} 37. Kd3 {[%clk 0:00:19]}  Kd6 {[%clk 0:00:19]} 38. Kc4 {[%clk 0:00:19]}  Be5 {[%clk 0:00:19]} 39. Kb4 {[%clk 0:00:13]}  Bd4 {[%clk 0:00:19]} 40. Kc4 {[%clk 0:00:13]}  Bf2 {[%clk 0:00:19]} 41. Kd3 {[%clk 0:00:08]}  Kc5 {[%clk 0:00:18]} 42. Ke2 {[%clk 0:00:02]}  Bd4 {[%clk 0:00:17]} 43. Kd3 {[%clk 0:00:02]}  Be5 {[%clk 0:00:16]} 0-1


[Site "https://www.chess.com"]

[Event "Titled Tuesday Blitz December 06 Late 2022"]
[White "Pinheiro, Iung Alicio de O."]
[Black "Yuan, Qingyu"]
[WhiteFideId "2104350"]
[BlackFideId "8609772"]
[WhiteElo "2283"]
[BlackElo "2359"]
[Result "0-1"]
[Round "09"]
[TimeControl "180+1"]
[Date "2022.12.06"]
[WhiteClock "0:00:08"]
[BlackClock "0:01:05"]

1. e4 {[%clk 0:03:00]}  e5 {[%clk 0:03:00]} 2. Nf3 {[%clk 0:02:59]}  Nc6 {[%clk 0:03:00]} 3. Bc4 {[%clk 0:02:59]}  Bc5 {[%clk 0:03:00]} 4. O-O {[%clk 0:02:42]}  Nf6 {[%clk 0:02:59]} 5. d4 {[%clk 0:02:32]}  Bxd4 {[%clk 0:02:59]} 6. Nxd4 {[%clk 0:02:33]}  Nxd4 {[%clk 0:03:00]} 7. Bg5 {[%clk 0:02:33]}  Ne6 {[%clk 0:02:52]} 8. Bh4 {[%clk 0:02:10]}  g5 {[%clk 0:02:38]} 9. Bg3 {[%clk 0:01:31]}  d6 {[%clk 0:02:37]} 10. Na3 {[%clk 0:01:21]}  Nxe4 {[%clk 0:02:30]} 11. Qh5 {[%clk 0:01:10]}  Nf6 {[%clk 0:02:19]} 12. Qe2 {[%clk 0:00:56]}  Bd7 {[%clk 0:02:09]} 13. Rad1 {[%clk 0:00:56]}  Qe7 {[%clk 0:02:06]} 14. c3 {[%clk 0:00:49]}  h5 {[%clk 0:01:52]} 15. h4 {[%clk 0:00:47]}  Rg8 {[%clk 0:01:48]} 16. Bb3 {[%clk 0:00:44]}  gxh4 {[%clk 0:01:45]} 17. Bxh4 {[%clk 0:00:44]}  Rxg2+ {[%clk 0:01:45]} 18. Kh1 {[%clk 0:00:38]}  Nf4 {[%clk 0:01:36]} 19. Qf3 {[%clk 0:00:34]}  Bc6 {[%clk 0:01:32]} 20. Bxf6 {[%clk 0:00:09]}  Bxf3 {[%clk 0:01:06]} 21. Bxe7 {[%clk 0:00:08]}  Rg3+ {[%clk 0:01:04]} 22. Kh2 {[%clk 0:00:08]}  Rh3+ {[%clk 0:01:05]} 0-1


[Site "https://www.chess.com"]

[Event "Titled Tuesday Blitz December 06 Late 2022"]
[White "Rorrer, Grayson"]
[Black "Romero Ruscalleda, Josep"]
[WhiteFideId "30944996"]
[BlackFideId "2231859"]
[WhiteElo "2200"]
[BlackElo "2183"]
[Result "1-0"]
[Round "09"]
[TimeControl "180+1"]
[Date "2022.12.07"]
[WhiteClock "0:02:11"]
[BlackClock "0:01:42"]

1. Nf3 {[%clk 0:03:00]}  g6 {[%clk 0:03:00]} 2. d4 {[%clk 0:02:56]}  Bg7 {[%clk 0:03:00]} 3. g3 {[%clk 0:02:56]}  d6 {[%clk 0:03:01]} 4. Bg2 {[%clk 0:02:57]}  Nf6 {[%clk 0:03:01]} 5. O-O {[%clk 0:02:57]}  O-O {[%clk 0:03:00]} 6. c4 {[%clk 0:02:57]}  Nc6 {[%clk 0:02:59]} 7. Nc3 {[%clk 0:02:58]}  Bf5 {[%clk 0:02:58]} 8. d5 {[%clk 0:02:58]}  Nb8 {[%clk 0:02:56]} 9. Nd4 {[%clk 0:02:58]}  Bd7 {[%clk 0:02:55]} 10. e4 {[%clk 0:02:59]}  c5 {[%clk 0:02:55]} 11. Nc2 {[%clk 0:02:58]}  a6 {[%clk 0:02:53]} 12. a4 {[%clk 0:02:58]}  b6 {[%clk 0:02:53]} 13. Qe2 {[%clk 0:02:57]}  Qc7 {[%clk 0:02:52]} 14. Bd2 {[%clk 0:02:58]}  e6 {[%clk 0:02:51]} 15. Bf4 {[%clk 0:02:52]}  exd5 {[%clk 0:02:50]} 16. e5 {[%clk 0:02:52]}  dxe5 {[%clk 0:02:10]} 17. Bxe5 {[%clk 0:02:53]}  Qd8 {[%clk 0:02:06]} 18. Bxf6 {[%clk 0:02:25]}  Bxf6 {[%clk 0:01:57]} 19. Nxd5 {[%clk 0:02:25]}  Bc6 {[%clk 0:01:47]} 20. Rfd1 {[%clk 0:02:12]}  Bg7 {[%clk 0:01:42]} 21. Ne7+ {[%clk 0:02:11]} 1-0


[Site "https://www.chess.com"]

[Event "Titled Tuesday Blitz December 06 Late 2022"]
[White "Rosenthal, Nicholas"]
[Black "Xiong, Jeffery"]
[WhiteFideId "2045150"]
[BlackFideId "2047640"]
[WhiteElo "2182"]
[BlackElo "2726"]
[Result "0-1"]
[Round "09"]
[TimeControl "180+1"]
[Date "2022.12.06"]
[WhiteClock "0:01:26"]
[BlackClock "0:00:51"]

1. e4 {[%clk 0:03:00]}  c5 {[%clk 0:03:00]} 2. Nf3 {[%clk 0:03:00]}  d6 {[%clk 0:03:00]} 3. Bb5+ {[%clk 0:03:00]}  Nc6 {[%clk 0:03:00]} 4. O-O {[%clk 0:02:59]}  Bd7 {[%clk 0:02:59]} 5. c3 {[%clk 0:02:59]}  Nf6 {[%clk 0:02:59]} 6. Re1 {[%clk 0:02:59]}  a6 {[%clk 0:03:00]} 7. Bf1 {[%clk 0:02:59]}  Bg4 {[%clk 0:03:00]} 8. h3 {[%clk 0:02:58]}  Bxf3 {[%clk 0:03:00]} 9. Qxf3 {[%clk 0:02:58]}  e6 {[%clk 0:03:01]} 10. d3 {[%clk 0:02:57]}  Be7 {[%clk 0:03:01]} 11. Bf4 {[%clk 0:02:57]}  O-O {[%clk 0:03:01]} 12. Nd2 {[%clk 0:02:56]}  b5 {[%clk 0:03:02]} 13. Rad1 {[%clk 0:02:54]}  Rc8 {[%clk 0:02:54]} 14. g4 {[%clk 0:02:50]}  Nd7 {[%clk 0:02:54]} 15. Bg2 {[%clk 0:02:47]}  Nde5 {[%clk 0:02:48]} 16. Qg3 {[%clk 0:02:46]}  Bh4 {[%clk 0:02:47]} 17. Qe3 {[%clk 0:02:44]}  Ng6 {[%clk 0:02:48]} 18. d4 {[%clk 0:02:41]}  cxd4 {[%clk 0:02:45]} 19. cxd4 {[%clk 0:02:42]}  Nxf4 {[%clk 0:02:39]} 20. Qxf4 {[%clk 0:02:43]}  Nxd4 {[%clk 0:02:28]} 21. Nf3 {[%clk 0:02:43]}  Nxf3+ {[%clk 0:02:27]} 22. Bxf3 {[%clk 0:02:42]}  Rc6 {[%clk 0:01:27]} 23. Rd3 {[%clk 0:02:29]}  h6 {[%clk 0:01:26]} 24. Red1 {[%clk 0:02:28]}  Qb6 {[%clk 0:01:24]} 25. Bg2 {[%clk 0:02:23]}  Rfc8 {[%clk 0:01:13]} 26. Rxd6 {[%clk 0:02:20]}  Rxd6 {[%clk 0:01:12]} 27. Rxd6 {[%clk 0:02:13]}  Bxf2+ {[%clk 0:01:12]} 28. Kf1 {[%clk 0:02:13]}  Qc5 {[%clk 0:00:59]} 29. Rd7 {[%clk 0:02:08]}  Bd4 {[%clk 0:00:58]} 30. e5 {[%clk 0:01:31]}  Qc4+ {[%clk 0:00:51]} 31. Ke1 {[%clk 0:01:26]}  Bc3+ {[%clk 0:00:51]} 0-1


[Site "https://www.chess.com"]

[Event "Titled Tuesday Blitz December 06 Late 2022"]
[White "Sarana, Alexey"]
[Black "Harshavardhan G B"]
[WhiteFideId "24133795"]
[BlackFideId "25059009"]
[WhiteElo "2708"]
[BlackElo "2323"]
[Result "1-0"]
[Round "09"]
[TimeControl "180+1"]
[Date "2022.12.06"]
[WhiteClock "0:00:41"]
[BlackClock "0:00:02"]

1. d4 {[%clk 0:03:00]}  Nf6 {[%clk 0:02:57]} 2. c4 {[%clk 0:03:01]}  g6 {[%clk 0:02:56]} 3. Nc3 {[%clk 0:03:01]}  Bg7 {[%clk 0:02:56]} 4. e4 {[%clk 0:03:02]}  d6 {[%clk 0:02:57]} 5. Be2 {[%clk 0:03:02]}  O-O {[%clk 0:02:57]} 6. Be3 {[%clk 0:03:03]}  e5 {[%clk 0:02:57]} 7. d5 {[%clk 0:03:03]}  Na6 {[%clk 0:02:57]} 8. g4 {[%clk 0:03:04]}  Nc5 {[%clk 0:02:55]} 9. f3 {[%clk 0:03:04]}  h5 {[%clk 0:02:54]} 10. g5 {[%clk 0:03:05]}  Nfd7 {[%clk 0:02:53]} 11. h4 {[%clk 0:03:05]}  f6 {[%clk 0:02:52]} 12. Qd2 {[%clk 0:03:04]}  fxg5 {[%clk 0:02:50]} 13. hxg5 {[%clk 0:03:05]}  a5 {[%clk 0:02:50]} 14. Nh3 {[%clk 0:03:04]}  Nb6 {[%clk 0:02:49]} 15. O-O-O {[%clk 0:03:04]}  Bxh3 {[%clk 0:02:45]} 16. Rxh3 {[%clk 0:03:03]}  a4 {[%clk 0:02:45]} 17. Kb1 {[%clk 0:03:03]}  Qd7 {[%clk 0:02:42]} 18. Rg3 {[%clk 0:03:00]}  Rf7 {[%clk 0:02:41]} 19. Nb5 {[%clk 0:02:57]}  Raf8 {[%clk 0:02:38]} 20. Rh1 {[%clk 0:02:53]}  Qe7 {[%clk 0:02:27]} 21. Qb4 {[%clk 0:02:44]}  Rf4 {[%clk 0:02:18]} 22. Qa5 {[%clk 0:02:32]}  Ra8 {[%clk 0:02:05]} 23. Qb4 {[%clk 0:02:27]}  Raf8 {[%clk 0:02:03]} 24. Bd1 {[%clk 0:01:56]}  Na6 {[%clk 0:01:50]} 25. Qc3 {[%clk 0:01:52]}  Nc5 {[%clk 0:01:39]} 26. Be2 {[%clk 0:01:51]}  Qd7 {[%clk 0:01:25]} 27. Qa5 {[%clk 0:01:42]}  Ra8 {[%clk 0:01:22]} 28. Qb4 {[%clk 0:01:41]}  Qe7 {[%clk 0:01:14]} 29. a3 {[%clk 0:01:24]}  Raf8 {[%clk 0:01:05]} 30. Nxd6 {[%clk 0:01:10]}  Na6 {[%clk 0:01:02]} 31. Qa5 {[%clk 0:01:03]}  Qxd6 {[%clk 0:00:52]} 32. c5 {[%clk 0:01:04]}  Nxc5 {[%clk 0:00:37]} 33. Bxc5 {[%clk 0:01:03]}  Qd8 {[%clk 0:00:29]} 34. d6 {[%clk 0:01:03]}  Qa8 {[%clk 0:00:13]} 35. Qb4 {[%clk 0:00:59]}  Nd7 {[%clk 0:00:09]} 36. dxc7 {[%clk 0:00:59]}  Nxc5 {[%clk 0:00:08]} 37. Qxc5 {[%clk 0:00:59]}  Rc8 {[%clk 0:00:08]} 38. Bc4+ {[%clk 0:00:59]}  Kh7 {[%clk 0:00:07]} 39. Be6 {[%clk 0:00:58]}  Bf8 {[%clk 0:00:05]} 40. Qc4 {[%clk 0:00:54]}  b6 {[%clk 0:00:03]} 41. Bxc8 {[%clk 0:00:52]}  Qxc8 {[%clk 0:00:04]} 42. Rc1 {[%clk 0:00:52]}  Kg7 {[%clk 0:00:03]} 43. Qc6 {[%clk 0:00:46]}  Rf7 {[%clk 0:00:02]} 44. Qd5 {[%clk 0:00:41]} 1-0


[Site "https://www.chess.com"]

[Event "Titled Tuesday Blitz December 06 Late 2022"]
[White "Shapiro, Daniel"]
[Black "Toncheva, Nadya"]
[WhiteFideId "2001780"]
[BlackFideId "2924056"]
[WhiteElo "2339"]
[BlackElo "2101"]
[Result "0-1"]
[Round "09"]
[TimeControl "180+1"]
[Date "2022.12.07"]
[WhiteClock "0:00:13"]
[BlackClock "0:00:33"]

1. d4 {[%clk 0:03:00]}  d5 {[%clk 0:02:58]} 2. c4 {[%clk 0:03:01]}  dxc4 {[%clk 0:02:59]} 3. e4 {[%clk 0:03:01]}  e5 {[%clk 0:02:59]} 4. Nf3 {[%clk 0:02:59]}  Bb4+ {[%clk 0:02:59]} 5. Nc3 {[%clk 0:02:51]}  exd4 {[%clk 0:02:58]} 6. Qxd4 {[%clk 0:02:50]}  Qxd4 {[%clk 0:02:56]} 7. Nxd4 {[%clk 0:02:51]}  Nf6 {[%clk 0:02:53]} 8. f3 {[%clk 0:02:44]}  Be6 {[%clk 0:02:46]} 9. Nxe6 {[%clk 0:02:34]}  fxe6 {[%clk 0:02:47]} 10. Bxc4 {[%clk 0:02:33]}  Ke7 {[%clk 0:02:44]} 11. Bd2 {[%clk 0:02:27]}  Nbd7 {[%clk 0:02:29]} 12. O-O {[%clk 0:02:07]}  Rhd8 {[%clk 0:02:17]} 13. Rfd1 {[%clk 0:02:06]}  Bc5+ {[%clk 0:02:15]} 14. Kf1 {[%clk 0:02:02]}  a6 {[%clk 0:02:14]} 15. a3 {[%clk 0:01:57]}  b5 {[%clk 0:02:12]} 16. Ba2 {[%clk 0:01:48]}  Ne5 {[%clk 0:02:10]} 17. Rac1 {[%clk 0:01:28]}  Nd3 {[%clk 0:02:09]} 18. Rc2 {[%clk 0:01:26]}  Bb6 {[%clk 0:01:54]} 19. Bg5 {[%clk 0:01:19]}  h6 {[%clk 0:01:46]} 20. Bh4 {[%clk 0:01:17]}  g5 {[%clk 0:01:44]} 21. Bg3 {[%clk 0:01:15]}  Nh5 {[%clk 0:01:40]} 22. Rcd2 {[%clk 0:01:07]}  Nxg3+ {[%clk 0:01:20]} 23. hxg3 {[%clk 0:01:08]}  Ne5 {[%clk 0:01:19]} 24. Ke2 {[%clk 0:01:03]}  Rxd2+ {[%clk 0:01:15]} 25. Rxd2 {[%clk 0:01:00]}  h5 {[%clk 0:01:10]} 26. Rd1 {[%clk 0:00:59]}  h4 {[%clk 0:01:05]} 27. gxh4 {[%clk 0:00:58]}  gxh4 {[%clk 0:01:06]} 28. Rh1 {[%clk 0:00:57]}  Rg8 {[%clk 0:01:04]} 29. Kf1 {[%clk 0:00:47]}  Ng6 {[%clk 0:00:56]} 30. Ne2 {[%clk 0:00:43]}  Rd8 {[%clk 0:00:53]} 31. Ke1 {[%clk 0:00:37]}  Be3 {[%clk 0:00:51]} 32. g3 {[%clk 0:00:34]}  Rd2 {[%clk 0:00:38]} 33. gxh4 {[%clk 0:00:19]}  Rxb2 {[%clk 0:00:38]} 34. Nc3 {[%clk 0:00:15]}  Bd2+ {[%clk 0:00:35]} 35. Kf1 {[%clk 0:00:13]}  Bxc3 {[%clk 0:00:36]} 36. h5 {[%clk 0:00:13]}  Rxa2 {[%clk 0:00:33]} 0-1


[Site "https://www.chess.com"]